[Event "Titled Tuesday Blitz May 16 Late 2023"]
[White "Sanchez Enriquez, Oscar Gerardo"]
[Black "Sattarov, Bobir"]
[WhiteFideId "5106311"]
[BlackFideId "14203081"]
[WhiteElo "2387"]
[BlackElo "2351"]
[Result "1-0"]
[Round "03"]
[TimeControl "180+2"]
[Date "2023.05.16"]
[WhiteClock "0:00:19"]
[BlackClock "0:00:08"]

1. d4 {[%clk 0:02:56]}  Nf6 {[%clk 0:02:58]} 2. Nc3 {[%clk 0:02:56]}  d5 {[%clk 0:02:58]} 3. Bf4 {[%clk 0:02:57]}  a6 {[%clk 0:02:58]} 4. e3 {[%clk 0:02:57]}  e6 {[%clk 0:02:58]} 5. g4 {[%clk 0:02:57]}  b5 {[%clk 0:02:58]} 6. g5 {[%clk 0:02:57]}  Nfd7 {[%clk 0:02:58]} 7. h4 {[%clk 0:02:57]}  Bb7 {[%clk 0:02:58]} 8. Nf3 {[%clk 0:02:57]}  c5 {[%clk 0:02:59]} 9. Bh3 {[%clk 0:02:56]}  Nc6 {[%clk 0:02:57]} 10. a3 {[%clk 0:02:51]}  Qb6 {[%clk 0:02:57]} 11. Qd2 {[%clk 0:02:47]}  Rc8 {[%clk 0:02:57]} 12. Bg4 {[%clk 0:02:43]}  Na5 {[%clk 0:02:45]} 13. b3 {[%clk 0:02:38]}  cxd4 {[%clk 0:02:43]} 14. exd4 {[%clk 0:02:37]}  Nc6 {[%clk 0:02:24]} 15. h5 {[%clk 0:02:24]}  Be7 {[%clk 0:02:10]} 16. Kf1 {[%clk 0:02:16]}  Qa5 {[%clk 0:02:01]} 17. Kg2 {[%clk 0:02:10]}  Nd8 {[%clk 0:01:55]} 18. b4 {[%clk 0:01:59]}  Qb6 {[%clk 0:01:55]} 19. Ne2 {[%clk 0:01:53]}  Bd6 {[%clk 0:01:44]} 20. g6 {[%clk 0:01:47]}  f5 {[%clk 0:01:42]} 21. Bh3 {[%clk 0:01:43]}  h6 {[%clk 0:01:39]} 22. Rhe1 {[%clk 0:01:38]}  Nf6 {[%clk 0:01:22]} 23. Ne5 {[%clk 0:01:24]}  Ne4 {[%clk 0:01:21]} 24. Qd3 {[%clk 0:01:24]}  O-O {[%clk 0:01:18]} 25. f3 {[%clk 0:01:24]}  Nf6 {[%clk 0:01:17]} 26. Ng3 {[%clk 0:01:22]}  Qc7 {[%clk 0:01:11]} 27. Re2 {[%clk 0:01:22]}  Qc6 {[%clk 0:01:10]} 28. Nxc6 {[%clk 0:01:21]}  Bxf4 {[%clk 0:01:08]} 29. Ne7+ {[%clk 0:01:20]}  Kh8 {[%clk 0:01:08]} 30. Nxc8 {[%clk 0:01:19]}  Bxc8 {[%clk 0:01:09]} 31. Rae1 {[%clk 0:01:14]}  Bd7 {[%clk 0:01:08]} 32. a4 {[%clk 0:01:06]}  Bd6 {[%clk 0:00:58]} 33. c3 {[%clk 0:00:58]}  Ng8 {[%clk 0:00:54]} 34. axb5 {[%clk 0:00:44]}  Bxb5 {[%clk 0:00:51]} 35. Qc2 {[%clk 0:00:44]}  Rf6 {[%clk 0:00:50]} 36. Re5 {[%clk 0:00:35]}  Ne7 {[%clk 0:00:47]} 37. Kf2 {[%clk 0:00:34]}  Nec6 {[%clk 0:00:42]} 38. f4 {[%clk 0:00:34]}  Bxe5 {[%clk 0:00:42]} 39. fxe5 {[%clk 0:00:34]}  Rf8 {[%clk 0:00:41]} 40. Bf1 {[%clk 0:00:34]}  f4 {[%clk 0:00:35]} 41. Ne2 {[%clk 0:00:31]}  Ne7 {[%clk 0:00:31]} 42. Ng1 {[%clk 0:00:30]}  Ndc6 {[%clk 0:00:21]} 43. Bxb5 {[%clk 0:00:27]}  axb5 {[%clk 0:00:22]} 44. Qa2 {[%clk 0:00:27]}  Nf5 {[%clk 0:00:17]} 45. Qa6 {[%clk 0:00:27]}  Nce7 {[%clk 0:00:17]} 46. Qxe6 {[%clk 0:00:24]}  Rc8 {[%clk 0:00:18]} 47. Rc1 {[%clk 0:00:20]}  Ra8 {[%clk 0:00:18]} 48. Rc2 {[%clk 0:00:19]}  Ra7 {[%clk 0:00:16]} 49. Ne2 {[%clk 0:00:20]}  f3 {[%clk 0:00:15]} 50. Nf4 {[%clk 0:00:20]}  Ra8 {[%clk 0:00:11]} 51. Nxd5 {[%clk 0:00:19]}  Nxd5 {[%clk 0:00:10]} 52. Qxd5 {[%clk 0:00:20]}  Ra7 {[%clk 0:00:08]} 53. Qd8# {[%clk 0:00:19]} 1-0


[Site "https://www.chess.com"]

[Event "Titled Tuesday Blitz May 16 Late 2023"]
[White "Przybylski, Wojciech"]
[Black "Kuznetsov, Felix"]
[WhiteFideId "1117599"]
[BlackFideId "34147990"]
[WhiteElo "2222"]
[BlackElo "2281"]
[Result "1-0"]
[Round "03"]
[TimeControl "180+2"]
[Date "2023.05.16"]
[WhiteClock "0:00:13"]
[BlackClock "0:00:00"]

1. e4 {[%clk 0:03:00]}  c5 {[%clk 0:02:59]} 2. Nf3 {[%clk 0:02:59]}  Nc6 {[%clk 0:02:59]} 3. d4 {[%clk 0:02:57]}  cxd4 {[%clk 0:03:00]} 4. Nxd4 {[%clk 0:02:57]}  Nf6 {[%clk 0:03:01]} 5. Nc3 {[%clk 0:02:57]}  e6 {[%clk 0:03:01]} 6. Ndb5 {[%clk 0:02:52]}  Bc5 {[%clk 0:03:01]} 7. Nd6+ {[%clk 0:02:40]}  Ke7 {[%clk 0:03:00]} 8. Nxc8+ {[%clk 0:02:39]}  Rxc8 {[%clk 0:03:00]} 9. Bd3 {[%clk 0:02:37]}  h6 {[%clk 0:02:55]} 10. O-O {[%clk 0:02:36]}  a6 {[%clk 0:02:54]} 11. h3 {[%clk 0:02:36]}  Qc7 {[%clk 0:02:48]} 12. Kh1 {[%clk 0:02:33]}  Rhd8 {[%clk 0:02:44]} 13. f4 {[%clk 0:02:32]}  d5 {[%clk 0:02:32]} 14. e5 {[%clk 0:02:31]}  Ne4 {[%clk 0:02:12]} 15. Qe1 {[%clk 0:02:23]}  Nxc3 {[%clk 0:02:04]} 16. bxc3 {[%clk 0:02:23]}  Kf8 {[%clk 0:01:45]} 17. Bd2 {[%clk 0:01:54]}  b5 {[%clk 0:01:41]} 18. Qg3 {[%clk 0:01:50]}  d4 {[%clk 0:01:10]} 19. f5 {[%clk 0:01:23]}  Qxe5 {[%clk 0:00:56]} 20. Bf4 {[%clk 0:01:20]}  Qd5 {[%clk 0:00:56]} 21. fxe6 {[%clk 0:01:10]}  Qxe6 {[%clk 0:00:48]} 22. Rae1 {[%clk 0:01:06]}  Qd5 {[%clk 0:00:43]} 23. Be4 {[%clk 0:00:54]}  Qh5 {[%clk 0:00:29]} 24. Bc7 {[%clk 0:00:39]}  Rd7 {[%clk 0:00:13]} 25. Rf5 {[%clk 0:00:39]}  g5 {[%clk 0:00:04]} 26. Rxc5 {[%clk 0:00:20]}  Rdxc7 {[%clk 0:00:04]} 27. Qd6+ {[%clk 0:00:19]}  Kg8 {[%clk 0:00:02]} 28. Rxc6 {[%clk 0:00:18]}  Rxc6 {[%clk 0:00:02]} 29. Bxc6 {[%clk 0:00:18]}  dxc3 {[%clk 0:00:00]} 30. Rf1 {[%clk 0:00:13]} 1-0


[Site "https://www.chess.com"]

[Event "Titled Tuesday Blitz May 16 Late 2023"]
[White "Petrovic, Aleksa"]
[Black "Harshavardhan G B"]
[WhiteFideId "967629"]
[BlackFideId "25059009"]
[WhiteElo "2309"]
[BlackElo "2323"]
[Result "1/2-1/2"]
[Round "03"]
[TimeControl "180+2"]
[Date "2023.05.16"]
[WhiteClock "0:00:14"]
[BlackClock "0:01:50"]

1. d4 {[%clk 0:03:00]}  Nf6 {[%clk 0:02:59]} 2. c4 {[%clk 0:03:01]}  e6 {[%clk 0:02:59]} 3. Nf3 {[%clk 0:03:00]}  b6 {[%clk 0:02:59]} 4. g3 {[%clk 0:02:59]}  Ba6 {[%clk 0:02:58]} 5. Qa4 {[%clk 0:02:59]}  Bb7 {[%clk 0:02:57]} 6. Bg2 {[%clk 0:02:59]}  Be7 {[%clk 0:02:52]} 7. O-O {[%clk 0:02:58]}  O-O {[%clk 0:02:52]} 8. Nc3 {[%clk 0:02:56]}  Ne4 {[%clk 0:02:50]} 9. Nxe4 {[%clk 0:02:55]}  Bxe4 {[%clk 0:02:51]} 10. Nh4 {[%clk 0:02:55]}  Bxg2 {[%clk 0:02:51]} 11. Nxg2 {[%clk 0:02:56]}  d5 {[%clk 0:02:47]} 12. cxd5 {[%clk 0:02:56]}  Qxd5 {[%clk 0:02:46]} 13. Bf4 {[%clk 0:02:52]}  c5 {[%clk 0:02:46]} 14. dxc5 {[%clk 0:02:50]}  Bxc5 {[%clk 0:02:46]} 15. Rfd1 {[%clk 0:02:49]}  Qc6 {[%clk 0:02:43]} 16. Qxc6 {[%clk 0:02:42]}  Nxc6 {[%clk 0:02:44]} 17. Bd6 {[%clk 0:02:40]}  Bxd6 {[%clk 0:02:38]} 18. Rxd6 {[%clk 0:02:41]}  Ne5 {[%clk 0:02:38]} 19. Ne3 {[%clk 0:02:34]}  Rfd8 {[%clk 0:02:36]} 20. Rad1 {[%clk 0:02:33]}  Rxd6 {[%clk 0:02:35]} 21. Rxd6 {[%clk 0:02:34]}  g5 {[%clk 0:02:31]} 22. f4 {[%clk 0:02:23]}  gxf4 {[%clk 0:02:29]} 23. gxf4 {[%clk 0:02:24]}  Ng6 {[%clk 0:02:27]} 24. f5 {[%clk 0:02:21]}  Nf4 {[%clk 0:02:28]} 25. fxe6 {[%clk 0:02:17]}  Nxe6 {[%clk 0:02:23]} 26. Nf5 {[%clk 0:02:15]}  Rd8 {[%clk 0:02:22]} 27. Rxd8+ {[%clk 0:02:10]}  Nxd8 {[%clk 0:02:22]} 28. Kf2 {[%clk 0:02:08]}  f6 {[%clk 0:02:20]} 29. Ke3 {[%clk 0:02:05]}  Kf7 {[%clk 0:02:20]} 30. Ke4 {[%clk 0:02:03]}  Ke6 {[%clk 0:02:19]} 31. Nd4+ {[%clk 0:02:02]}  Kf7 {[%clk 0:02:19]} 32. Kd5 {[%clk 0:02:01]}  Nb7 {[%clk 0:02:16]} 33. Nb5 {[%clk 0:01:38]}  Nc5 {[%clk 0:02:15]} 34. Nxa7 {[%clk 0:01:36]}  Na4 {[%clk 0:02:14]} 35. Nc8 {[%clk 0:01:23]}  Kg6 {[%clk 0:02:09]} 36. e4 {[%clk 0:01:16]}  b5 {[%clk 0:02:05]} 37. Kc6 {[%clk 0:01:08]}  Nxb2 {[%clk 0:02:03]} 38. Kxb5 {[%clk 0:01:07]}  Kg5 {[%clk 0:02:03]} 39. Nd6 {[%clk 0:00:57]}  Kf4 {[%clk 0:02:01]} 40. Kb4 {[%clk 0:00:45]}  Ke5 {[%clk 0:01:57]} 41. Nc4+ {[%clk 0:00:44]}  Nxc4 {[%clk 0:01:50]} 42. Kxc4 {[%clk 0:00:45]}  Kxe4 {[%clk 0:01:51]} 43. a4 {[%clk 0:00:44]}  Ke5 {[%clk 0:01:49]} 44. a5 {[%clk 0:00:37]}  Kd6 {[%clk 0:01:49]} 45. a6 {[%clk 0:00:37]}  Kc6 {[%clk 0:01:48]} 46. h4 {[%clk 0:00:26]}  h5 {[%clk 0:01:46]} 47. a7 {[%clk 0:00:09]}  Kb7 {[%clk 0:01:45]} 48. Kd5 {[%clk 0:00:09]}  Kxa7 {[%clk 0:01:46]} 49. Ke6 {[%clk 0:00:09]}  Kb7 {[%clk 0:01:46]} 50. Kxf6 {[%clk 0:00:10]}  Kc7 {[%clk 0:01:47]} 51. Kg6 {[%clk 0:00:10]}  Kd7 {[%clk 0:01:48]} 52. Kxh5 {[%clk 0:00:11]}  Ke7 {[%clk 0:01:48]} 53. Kg6 {[%clk 0:00:11]}  Kf8 {[%clk 0:01:49]} 54. h5 {[%clk 0:00:12]}  Kg8 {[%clk 0:01:50]} 55. h6 {[%clk 0:00:13]}  Kh8 {[%clk 0:01:50]} 56. h7 {[%clk 0:00:14]} 1/2-1/2


[Site "https://www.chess.com"]

[Event "Titled Tuesday Blitz May 16 Late 2023"]
[White "krucki03"]
[Black "Djokic, Mihailo"]
[BlackFideId "976440"]
[WhiteElo "2471"]
[BlackElo "2294"]
[Result "0-1"]
[Round "03"]
[TimeControl "180+2"]
[Date "2023.05.16"]
[WhiteClock "0:01:09"]
[BlackClock "0:01:53"]

1. e4 {[%clk 0:03:00]}  c5 {[%clk 0:02:53]} 2. Nf3 {[%clk 0:02:54]}  d6 {[%clk 0:02:53]} 3. d4 {[%clk 0:02:55]}  cxd4 {[%clk 0:02:54]} 4. Nxd4 {[%clk 0:02:55]}  Nf6 {[%clk 0:02:54]} 5. Nc3 {[%clk 0:02:56]}  g6 {[%clk 0:02:54]} 6. Be3 {[%clk 0:02:56]}  Bg7 {[%clk 0:02:55]} 7. f3 {[%clk 0:02:56]}  O-O {[%clk 0:02:56]} 8. Qd2 {[%clk 0:02:57]}  Nc6 {[%clk 0:02:56]} 9. O-O-O {[%clk 0:02:58]}  Bd7 {[%clk 0:02:57]} 10. h4 {[%clk 0:02:40]}  Rc8 {[%clk 0:02:56]} 11. Nb3 {[%clk 0:02:33]}  Ne5 {[%clk 0:02:54]} 12. Be2 {[%clk 0:02:29]}  h5 {[%clk 0:02:40]} 13. Bh6 {[%clk 0:02:25]}  Bxh6 {[%clk 0:02:33]} 14. Qxh6 {[%clk 0:02:25]}  Rxc3 {[%clk 0:02:34]} 15. bxc3 {[%clk 0:02:26]}  Qc7 {[%clk 0:02:35]} 16. Kb2 {[%clk 0:02:22]}  Rc8 {[%clk 0:02:34]} 17. Qd2 {[%clk 0:01:53]}  a5 {[%clk 0:02:34]} 18. Qd4 {[%clk 0:01:30]}  Be6 {[%clk 0:02:15]} 19. Nd2 {[%clk 0:01:13]}  Nfd7 {[%clk 0:01:59]} 20. Bb5 {[%clk 0:01:13]}  Nc5 {[%clk 0:01:55]} 21. c4 {[%clk 0:01:13]}  Qb6 {[%clk 0:01:54]} 22. a4 {[%clk 0:01:09]}  Nxa4+ {[%clk 0:01:53]} 0-1


[Site "https://www.chess.com"]

[Event "Titled Tuesday Blitz May 16 Late 2023"]
[White "Csonka, Balazs"]
[Black "Lucas, Arthur"]
[WhiteFideId "742910"]
[BlackFideId "26093073"]
[WhiteElo "2404"]
[BlackElo "2251"]
[Result "1-0"]
[Round "03"]
[TimeControl "180+2"]
[Date "2023.05.16"]
[WhiteClock "0:00:03"]
[BlackClock "0:00:45"]

1. c4 {[%clk 0:03:00]}  Nf6 {[%clk 0:02:59]} 2. g3 {[%clk 0:03:00]}  g6 {[%clk 0:02:59]} 3. Bg2 {[%clk 0:03:00]}  Bg7 {[%clk 0:03:00]} 4. Nc3 {[%clk 0:03:00]}  O-O {[%clk 0:03:01]} 5. Nf3 {[%clk 0:02:55]}  d6 {[%clk 0:03:01]} 6. O-O {[%clk 0:02:54]}  Nc6 {[%clk 0:02:59]} 7. d4 {[%clk 0:02:48]}  e5 {[%clk 0:02:58]} 8. dxe5 {[%clk 0:02:40]}  Nxe5 {[%clk 0:02:59]} 9. b3 {[%clk 0:02:35]}  Nxf3+ {[%clk 0:02:58]} 10. Bxf3 {[%clk 0:02:35]}  Bh3 {[%clk 0:02:58]} 11. Re1 {[%clk 0:02:33]}  c6 {[%clk 0:02:59]} 12. Bb2 {[%clk 0:01:48]}  Qa5 {[%clk 0:02:54]} 13. e4 {[%clk 0:01:23]}  Rad8 {[%clk 0:02:47]} 14. Qc2 {[%clk 0:01:20]}  Bg4 {[%clk 0:02:42]} 15. Bg2 {[%clk 0:01:16]}  Qh5 {[%clk 0:02:41]} 16. Ne2 {[%clk 0:01:05]}  Bxe2 {[%clk 0:02:02]} 17. Qxe2 {[%clk 0:00:44]}  Qxe2 {[%clk 0:02:02]} 18. Rxe2 {[%clk 0:00:45]}  Nd7 {[%clk 0:01:55]} 19. Bxg7 {[%clk 0:00:41]}  Kxg7 {[%clk 0:01:56]} 20. Rd1 {[%clk 0:00:41]}  Nf6 {[%clk 0:01:47]} 21. Red2 {[%clk 0:00:38]}  Rfe8 {[%clk 0:01:42]} 22. f3 {[%clk 0:00:38]}  Re6 {[%clk 0:01:34]} 23. Bh3 {[%clk 0:00:31]}  Re5 {[%clk 0:01:10]} 24. Rxd6 {[%clk 0:00:31]}  Rxd6 {[%clk 0:01:11]} 25. Rxd6 {[%clk 0:00:31]}  Ra5 {[%clk 0:01:12]} 26. Rd2 {[%clk 0:00:31]}  Kf8 {[%clk 0:01:10]} 27. Kf2 {[%clk 0:00:28]}  Ke7 {[%clk 0:01:11]} 28. Ke3 {[%clk 0:00:27]}  h5 {[%clk 0:01:10]} 29. Bc8 {[%clk 0:00:22]}  b5 {[%clk 0:01:07]} 30. e5 {[%clk 0:00:21]}  Ne8 {[%clk 0:00:59]} 31. cxb5 {[%clk 0:00:19]}  cxb5 {[%clk 0:00:55]} 32. f4 {[%clk 0:00:20]}  b4 {[%clk 0:00:55]} 33. Bh3 {[%clk 0:00:14]}  Ng7 {[%clk 0:00:48]} 34. Kd3 {[%clk 0:00:12]}  Rc5 {[%clk 0:00:41]} 35. Rc2 {[%clk 0:00:11]}  Rxc2 {[%clk 0:00:19]} 36. Kxc2 {[%clk 0:00:12]}  h4 {[%clk 0:00:20]} 37. Bg4 {[%clk 0:00:10]}  hxg3 {[%clk 0:00:17]} 38. hxg3 {[%clk 0:00:11]}  f6 {[%clk 0:00:15]} 39. exf6+ {[%clk 0:00:11]}  Kxf6 {[%clk 0:00:15]} 40. Kd3 {[%clk 0:00:11]}  Ne8 {[%clk 0:00:12]} 41. Kc4 {[%clk 0:00:04]}  a5 {[%clk 0:00:13]} 42. Kb5 {[%clk 0:00:04]}  Nc7+ {[%clk 0:00:09]} 43. Kxa5 {[%clk 0:00:04]}  Nd5 {[%clk 0:00:10]} 44. Bf3 {[%clk 0:00:04]}  Nc3 {[%clk 0:00:11]} 45. Kxb4 {[%clk 0:00:04]}  Nxa2+ {[%clk 0:00:11]} 46. Kc4 {[%clk 0:00:04]}  Ke7 {[%clk 0:00:11]} 47. b4 {[%clk 0:00:04]}  Kd6 {[%clk 0:00:12]} 48. b5 {[%clk 0:00:05]}  Kc7 {[%clk 0:00:11]} 49. Be2 {[%clk 0:00:04]}  Nc1 {[%clk 0:00:11]} 50. Bf1 {[%clk 0:00:04]}  Na2 {[%clk 0:00:11]} 51. Kb3 {[%clk 0:00:03]}  Nc1+ {[%clk 0:00:11]} 52. Kc4 {[%clk 0:00:03]}  Ne2 {[%clk 0:00:12]} 53. Bxe2 {[%clk 0:00:03]}  Kb6 {[%clk 0:00:13]} 54. Kd5 {[%clk 0:00:03]}  g5 {[%clk 0:00:13]} 55. Ke5 {[%clk 0:00:03]}  Kb7 {[%clk 0:00:14]} 56. fxg5 {[%clk 0:00:03]}  Kc7 {[%clk 0:00:15]} 57. g6 {[%clk 0:00:04]}  Kd8 {[%clk 0:00:16]} 58. Kf6 {[%clk 0:00:04]}  Ke8 {[%clk 0:00:17]} 59. g7 {[%clk 0:00:04]}  Kd7 {[%clk 0:00:17]} 60. g8=Q {[%clk 0:00:05]}  Kd6 {[%clk 0:00:18]} 61. g4 {[%clk 0:00:05]}  Kc5 {[%clk 0:00:19]} 62. g5 {[%clk 0:00:05]}  Kb6 {[%clk 0:00:20]} 63. Qe6+ {[%clk 0:00:05]}  Ka5 {[%clk 0:00:21]} 64. Qc6 {[%clk 0:00:05]}  Ka4 {[%clk 0:00:21]} 65. b6+ {[%clk 0:00:06]}  Ka5 {[%clk 0:00:22]} 66. b7 {[%clk 0:00:05]}  Kb4 {[%clk 0:00:22]} 67. g6 {[%clk 0:00:06]}  Ka5 {[%clk 0:00:22]} 68. g7 {[%clk 0:00:06]}  Kb4 {[%clk 0:00:22]} 69. Bf3 {[%clk 0:00:07]}  Ka5 {[%clk 0:00:23]} 70. Be4 {[%clk 0:00:07]}  Kb4 {[%clk 0:00:23]} 71. Bd5 {[%clk 0:00:08]}  Ka5 {[%clk 0:00:23]} 72. Be6 {[%clk 0:00:09]}  Kb4 {[%clk 0:00:24]} 73. Bd7 {[%clk 0:00:10]}  Ka5 {[%clk 0:00:24]} 74. Ke7 {[%clk 0:00:11]}  Kb4 {[%clk 0:00:25]} 75. Kd6 {[%clk 0:00:11]}  Ka5 {[%clk 0:00:26]} 76. Ke5 {[%clk 0:00:12]}  Kb4 {[%clk 0:00:26]} 77. Kf4 {[%clk 0:00:13]}  Ka3 {[%clk 0:00:27]} 78. Kg3 {[%clk 0:00:14]}  Kb4 {[%clk 0:00:28]} 79. Kh2 {[%clk 0:00:15]}  Ka3 {[%clk 0:00:29]} 80. Kg1 {[%clk 0:00:16]}  Kb4 {[%clk 0:00:30]} 81. Kf2 {[%clk 0:00:16]}  Ka3 {[%clk 0:00:31]} 82. Ke1 {[%clk 0:00:17]}  Kb4 {[%clk 0:00:32]} 83. Kd2 {[%clk 0:00:18]}  Ka3 {[%clk 0:00:33]} 84. Kc3 {[%clk 0:00:17]}  Ka2 {[%clk 0:00:33]} 85. Qb6 {[%clk 0:00:16]}  Ka3 {[%clk 0:00:33]} 86. Bb5 {[%clk 0:00:12]}  Ka2 {[%clk 0:00:33]} 87. Qc5 {[%clk 0:00:11]}  Ka1 {[%clk 0:00:34]} 88. Qf2 {[%clk 0:00:10]}  Kb1 {[%clk 0:00:34]} 89. g8=Q {[%clk 0:00:09]}  Ka1 {[%clk 0:00:35]} 90. b8=Q {[%clk 0:00:09]}  Kb1 {[%clk 0:00:35]} 91. Qba7 {[%clk 0:00:09]}  Kc1 {[%clk 0:00:35]} 92. Ba4 {[%clk 0:00:08]}  Kb1 {[%clk 0:00:36]} 93. Bc2+ {[%clk 0:00:07]}  Kc1 {[%clk 0:00:37]} 94. Bd3 {[%clk 0:00:07]}  Kd1 {[%clk 0:00:37]} 95. Bc4 {[%clk 0:00:07]}  Kc1 {[%clk 0:00:38]} 96. Qgg7 {[%clk 0:00:07]}  Kd1 {[%clk 0:00:39]} 97. Qgg2 {[%clk 0:00:05]}  Kc1 {[%clk 0:00:40]} 98. Qh7 {[%clk 0:00:04]}  Kd1 {[%clk 0:00:40]} 99. Qhh2 {[%clk 0:00:04]}  Kc1 {[%clk 0:00:41]} 100. Qe2 {[%clk 0:00:04]}  Kb1 {[%clk 0:00:42]} 101. Qd2 {[%clk 0:00:04]}  Ka1 {[%clk 0:00:43]} 102. Qge2 {[%clk 0:00:02]}  Kb1 {[%clk 0:00:44]} 103. Qhf2 {[%clk 0:00:02]}  Ka1 {[%clk 0:00:45]} 104. Qfe1# {[%clk 0:00:03]} 1-0


[Site "https://www.chess.com"]

[Event "Titled Tuesday Blitz May 16 Late 2023"]
[White "Badmatsyrenov, Oleg"]
[Black "Koutlas, Nikolaos"]
[WhiteFideId "24115762"]
[BlackFideId "25827138"]
[WhiteElo "2396"]
[BlackElo "2215"]
[Result "1-0"]
[Round "03"]
[TimeControl "180+2"]
[Date "2023.05.16"]
[WhiteClock "0:00:07"]
[BlackClock "0:00:07"]

1. e4 {[%clk 0:03:00]}  c5 {[%clk 0:02:58]} 2. Nf3 {[%clk 0:03:00]}  d6 {[%clk 0:02:55]} 3. d4 {[%clk 0:03:00]}  Nd7 {[%clk 0:02:55]} 4. Nc3 {[%clk 0:02:59]}  g6 {[%clk 0:02:54]} 5. dxc5 {[%clk 0:02:56]}  Nxc5 {[%clk 0:02:54]} 6. Qd4 {[%clk 0:02:54]}  Nf6 {[%clk 0:02:28]} 7. e5 {[%clk 0:02:50]}  Ne6 {[%clk 0:02:28]} 8. Bb5+ {[%clk 0:02:46]}  Bd7 {[%clk 0:02:20]} 9. Qa4 {[%clk 0:02:46]}  Nc5 {[%clk 0:02:08]} 10. Qc4 {[%clk 0:02:32]}  Bxb5 {[%clk 0:01:56]} 11. Nxb5 {[%clk 0:02:20]}  Nfe4 {[%clk 0:01:39]} 12. b4 {[%clk 0:02:00]}  d5 {[%clk 0:01:35]} 13. Qe2 {[%clk 0:01:59]}  Na4 {[%clk 0:01:03]} 14. e6 {[%clk 0:01:50]}  Bg7 {[%clk 0:00:44]} 15. Rb1 {[%clk 0:01:34]}  fxe6 {[%clk 0:00:35]} 16. O-O {[%clk 0:01:27]}  O-O {[%clk 0:00:34]} 17. Rb3 {[%clk 0:01:18]}  Qd7 {[%clk 0:00:20]} 18. Nbd4 {[%clk 0:01:19]}  e5 {[%clk 0:00:15]} 19. Nb5 {[%clk 0:01:12]}  a6 {[%clk 0:00:16]} 20. Na3 {[%clk 0:01:11]}  Nac3 {[%clk 0:00:16]} 21. Qd3 {[%clk 0:01:09]}  d4 {[%clk 0:00:12]} 22. Re1 {[%clk 0:01:09]}  Qf5 {[%clk 0:00:10]} 23. Nc4 {[%clk 0:01:03]}  Rac8 {[%clk 0:00:09]} 24. Ncd2 {[%clk 0:00:59]}  Nxd2 {[%clk 0:00:08]} 25. Qxf5 {[%clk 0:00:59]}  gxf5 {[%clk 0:00:04]} 26. Bxd2 {[%clk 0:00:55]}  e4 {[%clk 0:00:04]} 27. Ng5 {[%clk 0:00:55]}  Nd5 {[%clk 0:00:03]} 28. Ne6 {[%clk 0:00:55]}  Rxc2 {[%clk 0:00:02]} 29. Bg5 {[%clk 0:00:49]}  Re8 {[%clk 0:00:02]} 30. Nxg7 {[%clk 0:00:47]}  Kxg7 {[%clk 0:00:03]} 31. g4 {[%clk 0:00:47]}  e6 {[%clk 0:00:02]} 32. Rg3 {[%clk 0:00:45]}  d3 {[%clk 0:00:03]} 33. Kf1 {[%clk 0:00:30]}  f4 {[%clk 0:00:03]} 34. Rh3 {[%clk 0:00:28]}  f3 {[%clk 0:00:03]} 35. Rxe4 {[%clk 0:00:25]}  d2 {[%clk 0:00:03]} 36. Bxd2 {[%clk 0:00:24]}  Rxd2 {[%clk 0:00:03]} 37. Rxf3 {[%clk 0:00:25]}  Rd1+ {[%clk 0:00:03]} 38. Kg2 {[%clk 0:00:25]}  Nf6 {[%clk 0:00:04]} 39. Ref4 {[%clk 0:00:24]}  Rf8 {[%clk 0:00:03]} 40. g5 {[%clk 0:00:23]}  Nd7 {[%clk 0:00:03]} 41. Rxf8 {[%clk 0:00:21]}  Nxf8 {[%clk 0:00:04]} 42. Rc3 {[%clk 0:00:21]}  Rd7 {[%clk 0:00:05]} 43. h4 {[%clk 0:00:20]}  Ng6 {[%clk 0:00:05]} 44. Kg3 {[%clk 0:00:21]}  Ne5 {[%clk 0:00:06]} 45. f3 {[%clk 0:00:18]}  Rd3 {[%clk 0:00:04]} 46. Rc7+ {[%clk 0:00:18]}  Rd7 {[%clk 0:00:05]} 47. Rc8 {[%clk 0:00:18]}  Nc6 {[%clk 0:00:05]} 48. a3 {[%clk 0:00:17]}  Nd4 {[%clk 0:00:05]} 49. Kg4 {[%clk 0:00:16]}  Nf5 {[%clk 0:00:04]} 50. f4 {[%clk 0:00:13]}  Ne3+ {[%clk 0:00:04]} 51. Kf3 {[%clk 0:00:11]}  Nd5 {[%clk 0:00:04]} 52. Rc4 {[%clk 0:00:04]}  Kg6 {[%clk 0:00:05]} 53. Kg3 {[%clk 0:00:04]}  Kf5 {[%clk 0:00:04]} 54. Rc8 {[%clk 0:00:04]}  Ne7 {[%clk 0:00:04]} 55. Rf8+ {[%clk 0:00:04]}  Ke4 {[%clk 0:00:04]} 56. Rf6 {[%clk 0:00:05]}  Nf5+ {[%clk 0:00:03]} 57. Kg4 {[%clk 0:00:06]}  Nd4 {[%clk 0:00:02]} 58. h5 {[%clk 0:00:06]}  Rc7 {[%clk 0:00:02]} 59. g6 {[%clk 0:00:06]}  hxg6 {[%clk 0:00:02]} 60. hxg6 {[%clk 0:00:07]}  Rc1 {[%clk 0:00:02]} 61. Kg5 {[%clk 0:00:07]}  Rg1+ {[%clk 0:00:02]} 62. Kh6 {[%clk 0:00:07]}  Nf5+ {[%clk 0:00:03]} 63. Kh7 {[%clk 0:00:08]}  Kd5 {[%clk 0:00:03]} 64. Rf7 {[%clk 0:00:06]}  Rh1+ {[%clk 0:00:02]} 65. Kg8 {[%clk 0:00:06]}  Nh6+ {[%clk 0:00:03]} 66. Kg7 {[%clk 0:00:06]}  Nf5+ {[%clk 0:00:03]} 67. Kf6 {[%clk 0:00:06]}  Nd6 {[%clk 0:00:02]} 68. Rd7 {[%clk 0:00:05]}  Rg1 {[%clk 0:00:01]} 69. g7 {[%clk 0:00:04]}  Kc6 {[%clk 0:00:02]} 70. Rxd6+ {[%clk 0:00:02]}  Kxd6 {[%clk 0:00:02]} 71. Kf7 {[%clk 0:00:03]}  Kd5 {[%clk 0:00:02]} 72. g8=Q {[%clk 0:00:03]}  Rxg8 {[%clk 0:00:02]} 73. Kxg8 {[%clk 0:00:04]}  Ke4 {[%clk 0:00:03]} 74. Kf7 {[%clk 0:00:05]}  Kxf4 {[%clk 0:00:03]} 75. Kxe6 {[%clk 0:00:06]}  Ke4 {[%clk 0:00:04]} 76. Kd6 {[%clk 0:00:06]}  Kd4 {[%clk 0:00:05]} 77. Kc7 {[%clk 0:00:06]}  b5 {[%clk 0:00:06]} 78. Kb6 {[%clk 0:00:07]}  Kc4 {[%clk 0:00:06]} 79. Kxa6 {[%clk 0:00:07]}  Kb3 {[%clk 0:00:07]} 80. Kxb5 {[%clk 0:00:07]} 1-0


[Site "https://www.chess.com"]

[Event "Titled Tuesday Blitz May 16 Late 2023"]
[White "Womacka, Mathias"]
[Black "Mihajlov, Sebastian"]
[WhiteFideId "4611390"]
[BlackFideId "1512110"]
[WhiteElo "2377"]
[BlackElo "2478"]
[Result "0-1"]
[Round "03"]
[TimeControl "180+2"]
[Date "2023.05.16"]
[WhiteClock "0:00:49"]
[BlackClock "0:00:40"]

1. e4 {[%clk 0:03:00]}  c5 {[%clk 0:02:59]} 2. Nf3 {[%clk 0:03:00]}  Nc6 {[%clk 0:02:59]} 3. d4 {[%clk 0:02:59]}  cxd4 {[%clk 0:03:00]} 4. Nxd4 {[%clk 0:02:59]}  e5 {[%clk 0:03:01]} 5. Nb5 {[%clk 0:02:59]}  d6 {[%clk 0:03:02]} 6. c4 {[%clk 0:02:58]}  g6 {[%clk 0:03:01]} 7. N1c3 {[%clk 0:02:52]}  a6 {[%clk 0:02:56]} 8. Na3 {[%clk 0:02:52]}  Bg7 {[%clk 0:02:56]} 9. Be2 {[%clk 0:02:49]}  Nge7 {[%clk 0:02:56]} 10. O-O {[%clk 0:02:49]}  O-O {[%clk 0:02:56]} 11. Be3 {[%clk 0:02:41]}  Nd4 {[%clk 0:02:50]} 12. Nc2 {[%clk 0:02:34]}  Nec6 {[%clk 0:02:50]} 13. Nd5 {[%clk 0:02:29]}  Be6 {[%clk 0:02:47]} 14. Qd2 {[%clk 0:02:16]}  Rc8 {[%clk 0:02:35]} 15. Bd3 {[%clk 0:02:11]}  f5 {[%clk 0:02:26]} 16. exf5 {[%clk 0:02:06]}  Bxf5 {[%clk 0:02:06]} 17. Nxd4 {[%clk 0:01:56]}  Nxd4 {[%clk 0:01:15]} 18. Bxd4 {[%clk 0:01:53]}  exd4 {[%clk 0:01:14]} 19. Bxf5 {[%clk 0:01:52]}  Rxf5 {[%clk 0:01:13]} 20. Rfe1 {[%clk 0:01:51]}  Rf7 {[%clk 0:01:07]} 21. Qd3 {[%clk 0:01:45]}  Qg5 {[%clk 0:00:59]} 22. Re2 {[%clk 0:01:36]}  Rcf8 {[%clk 0:00:55]} 23. Rae1 {[%clk 0:01:34]}  Be5 {[%clk 0:00:49]} 24. g3 {[%clk 0:01:34]}  Rf3 {[%clk 0:00:48]} 25. Qe4 {[%clk 0:01:26]}  d3 {[%clk 0:00:47]} 26. Re3 {[%clk 0:01:26]}  d2 {[%clk 0:00:45]} 27. Rd1 {[%clk 0:01:18]}  Rxf2 {[%clk 0:00:45]} 28. Rd3 {[%clk 0:00:49]}  Qh5 {[%clk 0:00:40]} 0-1


[Site "https://www.chess.com"]